fUST/lending_fUST_20241209
["ID","MTS","AMOUNT","RATE_DAILY","PERIOD"]
[344653355,1733682636426,-274.846016,0.00023644,7]
[344653356,1733682636436,-274.846016,0.00023644,7]
[344653357,1733682636446,-168.2431,0.00023644,7]
[344653358,1733682636455,-168.2431,0.00023644,7]
[344653359,1733682636465,-151.0,0.00023644,7]
[344653360,1733682636475,-213.054017,0.00023644,7]
[344653361,1733682636486,-213.054017,0.00023644,7]
[344653362,1733682636495,-691.176439,0.00023644,7]
[344653363,1733682636505,-691.176439,0.00023644,7]
[344653364,1733682636515,-151.0,0.00023644,7]
[344653365,1733682636524,-325.519409,0.00023644,7]
[344653366,1733682636534,-325.519409,0.00023644,7]
[344653367,1733682636544,-151.0,0.00023644,7]
[344653368,1733682636553,-698.349883,0.00023644,7]
[344653369,1733682636563,-698.349883,0.00023644,7]
[344653370,1733682636573,-151.0,0.00023644,7]
[344653371,1733682636583,-264.047303,0.00023644,7]
[344653372,1733682636592,-151.0,0.00023644,7]
[344653373,1733682636602,-264.047303,0.00023644,7]
[344653374,1733682636611,-151.0,0.00023644,7]
[344653375,1733682636621,-435.591748,0.00023644,7]
[344653376,1733682636631,-435.591748,0.00023644,7]
[344653377,1733682636641,-151.0,0.00023644,7]
[344653378,1733682636650,-151.0,0.00023644,7]
[344653379,1733682636660,-7679.92382505,0.00023644,2]
[344653380,1733682636670,-155403.57072993,0.000237,2]
[344653381,1733682636680,-63575.71578,0.000237,2]
[344653382,1733682636690,-1060.638689,0.000237,2]
[344653383,1733682636699,-179.803492,0.000237,2]
[344653384,1733682636709,-151.0,0.00023751,7]
[344653385,1733682636719,-151.0,0.00023751,7]
[344653386,1733682636729,-151.0,0.00023751,7]
[344653387,1733682636742,-151.0,0.00023751,7]
[344653388,1733682636752,-200.240414,0.00023751,7]
[344653389,1733682636762,-151.0,0.00023751,7]
[344653390,1733682636773,-151.0,0.00023751,7]
[344653391,1733682636783,-151.0,0.00023751,7]
[344653392,1733682636793,-204.826486,0.00023751,7]
[344653393,1733682636803,-151.0,0.00023751,7]
[344653394,1733682636812,-151.0,0.00023751,7]
[344653395,1733682636821,-151.0,0.00023751,7]
[344653396,1733682636831,-151.0,0.00023751,7]
[344653397,1733682636841,-151.0,0.00023751,7]
[344653398,1733682636850,-151.0,0.00023751,7]
[344653399,1733682636860,-151.0,0.00023751,7]
[344653400,1733682636871,-151.0,0.00023751,7]
[344653401,1733682636881,-151.0,0.00023751,7]
[344653402,1733682636891,-174.288732,0.00023751,7]
[344653403,1733682636900,-174.288732,0.00023751,7]
[344653404,1733682636910,-174.288732,0.00023751,7]
[344653405,1733682636919,-174.288732,0.00023751,7]
[344653406,1733682636929,-151.0,0.00023751,7]
[344653407,1733682636938,-151.0,0.00023751,7]
[344653408,1733682636948,-274.846016,0.00023751,7]
[344653409,1733682636958,-274.846016,0.00023751,7]
[344653410,1733682636967,-151.0,0.00023751,7]
[344653411,1733682636977,-151.0,0.00023751,7]
[344653412,1733682636989,-168.2431,0.00023751,7]
[344653413,1733682636998,-168.2431,0.00023751,7]
[344653414,1733682637008,-213.054017,0.00023751,7]
[344653415,1733682637018,-213.054017,0.00023751,7]
[344653416,1733682637027,-691.176439,0.00023751,7]
[344653417,1733682637037,-691.176439,0.00023751,7]
[344653418,1733682637047,-151.0,0.00023751,7]
[344653419,1733682637056,-151.0,0.00023751,7]
[344653420,1733682637066,-191416.08585535,0.00023753,5]
[344653421,1733682637076,-500.0,0.00023753,5]
[344653422,1733682637089,-500.0,0.00023753,5]
[344653423,1733682637099,-500.0,0.00023753,5]
[344653424,1733682637109,-500.0,0.00023753,5]
[344653425,1733682637119,-265.14431876,0.00023753,5]
[344653426,1733682637130,-460.92762151,0.00023753,5]
[344653427,1733682637139,-151.0,0.00023753,7]
[344653428,1733682637149,-151.0,0.00023753,7]
[344653429,1733682637159,-151.0,0.00023753,7]
[344653430,1733682637171,-151.0,0.00023753,7]
[344653431,1733682637181,-151.0,0.00023753,7]
[344653432,1733682637191,-215.626576,0.00023753,7]
[344653433,1733682637200,-151.0,0.00023753,7]
[344653434,1733682637277,-151.0,0.00023753,7]
[344653435,1733682637296,-151.0,0.00023753,7]
[344653436,1733682637306,-151.0,0.00023753,7]
[344653437,1733682637316,-151.0,0.00023753,7]
[344653438,1733682637325,-174.288732,0.00023753,7]
[344653439,1733682637336,-174.288732,0.00023753,7]
[344653440,1733682637345,-274.846016,0.00023753,7]
[344653441,1733682637355,-274.846016,0.00023753,7]
[344653442,1733682637365,-250.282082,0.00023753,7]
[344653443,1733682637375,-168.2431,0.00023753,7]
[344653444,1733682637385,-168.2431,0.00023753,7]
[344653445,1733682637395,-213.054017,0.00023753,7]
[344653446,1733682637405,-213.054017,0.00023753,7]
[344653447,1733682637415,-691.176439,0.00023753,7]
[344653448,1733682637425,-691.176439,0.00023753,7]
[344653450,1733682637435,-151.0,0.00023753,7]
[344653451,1733682637445,-325.519409,0.00023753,7]
[344653452,1733682637455,-325.519409,0.00023753,7]
[344653453,1733682637464,-151.0,0.00023753,7]
[344653454,1733682637473,-698.349883,0.00023753,7]
[344653455,1733682637482,-698.349883,0.00023753,7]
[344653456,1733682637494,-264.047303,0.00023753,7]
[344653457,1733682637504,-151.0,0.00023753,7]
[344653458,1733682637513,-264.047303,0.00023753,7]
[344653459,1733682637522,-151.0,0.00023753,7]
[344653460,1733682637531,-435.591748,0.00023753,7]
[344653461,1733682637541,-435.591748,0.00023753,7]
[344653462,1733682637551,-151.0,0.00023753,7]
[344653463,1733682637561,-151.0,0.00023753,7]
[344653464,1733682637570,-500.0,0.00023773,2]
[344653465,1733682637580,-504.15351589,0.00023773,2]
[344653466,1733682637589,-500.0,0.00023773,2]
[344653467,1733682637600,-151.0,0.00023807,7]
[344653468,1733682637609,-264.047303,0.00023807,7]
[344653469,1733682637619,-264.047303,0.00023807,7]
[344653471,1733682637629,-151.0,0.00023807,7]
[344653472,1733682637639,-444.535163,0.00023829,2]
[344653474,1733682637649,-1000.0,0.00023921,2]
[344653475,1733682637658,-1000.0,0.00023921,2]
[344653476,1733682637667,-2253.46,0.00024,2]
[344653477,1733682637677,-508.91075026,0.00024,2]
[344653478,1733682637686,-168.2431,0.00024,7]
[344653479,1733682637695,-168.2431,0.00024,7]
[344653480,1733682637704,-691.176439,0.00024,7]
[344653481,1733682637714,-691.176439,0.00024,7]
[344653482,1733682637723,-325.519409,0.00024,7]
[344653484,1733682637732,-325.519409,0.00024,7]
[344653486,1733682637744,-698.349883,0.00024,7]
[344653487,1733682637753,-698.349883,0.00024,7]
[344653489,1733682637763,-435.591748,0.00024,7]
[344653491,1733682637772,-435.591748,0.00024,7]
[344653493,1733682637781,-444.535163,0.00024052,2]
[344653494,1733682637791,-151.377,0.00024117,2]
[344653496,1733682637801,-532.0,0.00024117,2]
[344653497,1733682637810,-2372.0,0.00024117,2]
[344653499,1733682637819,-2166.0,0.00024117,2]
[344653501,1733682637828,-151.0,0.00024117,7]
[344653503,1733682637838,-151.0,0.00024117,7]
[344653505,1733682637847,-151.0,0.00024117,7]
[344653507,1733682637857,-151.0,0.00024117,7]
[344653509,1733682637866,-274.846016,0.00024117,7]
[344653511,1733682637877,-274.846016,0.00024117,7]
[344653513,1733682637887,-184.645,0.00024117,2]
[344653515,1733682637896,-213.054017,0.00024117,7]
[344653517,1733682637906,-213.054017,0.00024117,7]
[344653519,1733682637915,-151.0,0.00024117,7]
[344653521,1733682637925,-671.0211306,0.00024121,2]
[344653523,1733682637934,-151.0,0.00024149,7]
[344653525,1733682637943,-174.288732,0.00024149,7]
[344653527,1733682637952,-174.288732,0.00024149,7]
[344653529,1733682637962,-285.525286,0.00024149,7]
[344653531,1733682637971,-400.0,0.00024149,2]
[344653533,1733682637980,-2149.72293858,0.00024171,2]
[344653535,1733682637991,-151.0,0.00024171,7]
[344653537,1733682638000,-264.047303,0.00024171,7]
[344653539,1733682638010,-264.047303,0.00024171,7]
[344653541,1733682638019,-150.534,0.00024206,2]
[344653543,1733682638029,-150.0,0.00024206,2]
[344653545,1733682638038,-250.69,0.00024206,2]
[344653547,1733682638047,-151.845112,0.00024206,7]
[344653549,1733682638056,-189.275503,0.00024206,7]
[344653551,1733682638066,-152.175104,0.00024206,7]
[344653553,1733682638075,-151.0,0.00024206,7]
[344653555,1733682638087,-151.0,0.00024206,7]
[344653558,1733682638096,-151.903264,0.00024206,7]
[344653560,1733682638106,-152.305748,0.00024206,7]
[344653562,1733682638115,-151.0,0.00024206,7]
[344653564,1733682638124,-151.0,0.00024206,7]
[344653566,1733682638135,-151.0,0.00024206,7]
[344653567,1733682638144,-151.0,0.00024206,7]
[344653569,1733682638154,-151.0,0.00024206,7]
[344653571,1733682638164,-168.2431,0.00024206,7]
[344653573,1733682638173,-168.2431,0.00024206,7]
[344653575,1733682638183,-691.176439,0.00024206,7]
[344653577,1733682638192,-691.176439,0.00024206,7]
[344653579,1733682638202,-325.519409,0.00024206,7]
[344653581,1733682638211,-325.519409,0.00024206,7]
[344653583,1733682638221,-698.349883,0.00024206,7]
[344653585,1733682638231,-698.349883,0.00024206,7]
[344653587,1733682638242,-435.591748,0.00024206,7]
[344653588,1733682638251,-435.591748,0.00024206,7]
[344653589,1733682638260,-226.695984,0.00024206,7]
[344653590,1733682638269,-155.85972625,0.00024233,2]
[344653591,1733682638279,-500.67487282,0.0002425,2]
[344653592,1733682638288,-444.535163,0.00024274,2]
[344653593,1733682638298,-151.0,0.000243,6]
[344653594,1733682638308,-155.940128,0.000243,7]
[344653595,1733682638317,-274.846016,0.000243,7]
[344653596,1733682638326,-274.846016,0.000243,7]
[344653597,1733682638335,-213.054017,0.000243,7]
[344653598,1733682638345,-213.054017,0.000243,7]
[344653599,1733682638354,-1000.0,0.00024321,2]
[344653600,1733682638365,-3000.0,0.000244,2]
[344653602,1733682638375,-151.0,0.000244,10]
[344653604,1733682638384,-151.0,0.000244,7]
[344653606,1733682638393,-151.0,0.000244,7]
[344653608,1733682638402,-151.0,0.000244,7]
[344653610,1733682638411,-151.0,0.000244,7]
[344653612,1733682638421,-174.288732,0.000244,7]
[344653614,1733682638431,-174.288732,0.000244,7]
[344653616,1733682638440,-168.2431,0.000244,7]
[344653618,1733682638449,-168.2431,0.000244,7]
[344653620,1733682638459,-691.176439,0.000244,7]
[344653622,1733682638468,-691.176439,0.000244,7]
[344653624,1733682638477,-325.519409,0.000244,7]
[344653626,1733682638487,-325.519409,0.000244,7]
[344653628,1733682638496,-698.349883,0.000244,7]
[344653630,1733682638506,-698.349883,0.000244,7]
[344653632,1733682638516,-264.047303,0.000244,7]
[344653634,1733682638526,-264.047303,0.000244,7]
[344653635,1733682638535,-435.591748,0.000244,7]
[344653636,1733682638544,-435.591748,0.000244,7]
[344653637,1733682638555,-408.10547692,0.000244,9]
[344653638,1733682638565,-500.0,0.000244,9]
[344653639,1733682638574,-151.0,0.00024408,7]
[344653640,1733682638584,-151.0,0.00024408,7]
[344653641,1733682638594,-3000.0,0.0002441,2]
[344653642,1733682638603,-151.0,0.0002441,7]
[344653643,1733682638613,-151.0,0.0002441,7]
[344653644,1733682638623,-151.0,0.0002441,7]
[344653645,1733682638632,-3000.0,0.0002442,2]
[344653646,1733682638641,-151.0,0.0002442,7]
[344653647,1733682638651,-274.846016,0.0002442,7]
[344653648,1733682638727,-274.846016,0.0002442,7]
[344653649,1733682638738,-168.2431,0.0002442,7]
[344653650,1733682638747,-168.2431,0.0002442,7]
[344653651,1733682638757,-213.054017,0.0002442,7]
[344653652,1733682638766,-213.054017,0.0002442,7]
[344653653,1733682638775,-691.176439,0.0002442,7]
[344653654,1733682638785,-691.176439,0.0002442,7]
[344653655,1733682638795,-325.519409,0.0002442,7]
[344653656,1733682638807,-325.519409,0.0002442,7]
[344653657,1733682638816,-698.349883,0.0002442,7]
[344653658,1733682638825,-698.349883,0.0002442,7]
[344653659,1733682638835,-264.047303,0.0002442,7]
[344653660,1733682638845,-264.047303,0.0002442,7]
[344653661,1733682638854,-435.591748,0.0002442,7]
[344653662,1733682638863,-435.591748,0.0002442,7]
[344653663,1733682638874,-3000.0,0.0002443,2]
[344653664,1733682638884,-151.0,0.0002443,7]
[344653665,1733682638894,-151.0,0.0002443,7]
[344653666,1733682638904,-151.0,0.0002443,7]
[344653667,1733682638914,-151.0,0.0002443,7]
[344653668,1733682638923,-174.288732,0.0002443,7]
[344653669,1733682638933,-174.288732,0.0002443,7]
[344653670,1733682638942,-256.661474,0.00024433,2]
[344653671,1733682638951,-3000.0,0.0002444,2]
[344653672,1733682638961,-151.0,0.0002444,7]
[344653673,1733682638971,-151.0,0.0002444,7]
[344653674,1733682638981,-151.0,0.0002444,7]
[344653675,1733682638990,-151.0,0.0002444,7]
[344653676,1733682638999,-151.0,0.0002444,7]
[344653677,1733682639009,-151.0,0.0002444,7]
[344653678,1733682639018,-274.846016,0.0002444,7]
[344653679,1733682639027,-274.846016,0.0002444,7]
[344653680,1733682639036,-168.2431,0.0002444,7]
[344653681,1733682639045,-168.2431,0.0002444,7]
[344653682,1733682639055,-213.054017,0.0002444,7]
[344653683,1733682639063,-213.054017,0.0002444,7]
[344653684,1733682639073,-691.176439,0.0002444,7]
[344653685,1733682639084,-691.176439,0.0002444,7]
[344653686,1733682639093,-325.519409,0.0002444,7]
[344653687,1733682639103,-325.519409,0.0002444,7]
[344653688,1733682639112,-698.349883,0.0002444,7]
[344653689,1733682639122,-698.349883,0.0002444,7]
[344653690,1733682639131,-264.047303,0.0002444,7]
[344653691,1733682639140,-264.047303,0.0002444,7]
[344653692,1733682639149,-435.591748,0.0002444,7]
[344653693,1733682639158,-435.591748,0.0002444,7]
[344653694,1733682639168,-3000.0,0.0002445,2]
[344653695,1733682639177,-158.365376,0.0002445,7]
[344653696,1733682639187,-3000.0,0.0002446,2]
[344653697,1733682639196,-151.0,0.0002446,7]
[344653698,1733682639205,-166.66555,0.0002446,7]
[344653699,1733682639215,-151.0,0.0002446,7]
[344653700,1733682639225,-3000.0,0.0002447,2]
[344653701,1733682639234,-151.0,0.0002447,7]
[344653702,1733682639243,-151.0,0.0002447,7]
[344653703,1733682639253,-151.0,0.0002447,7]
[344653704,1733682639262,-266.049907,0.0002447,7]
[344653705,1733682639272,-174.288732,0.0002447,7]
[344653706,1733682639281,-174.288732,0.0002447,7]
[344653707,1733682639290,-274.846016,0.0002447,7]
[344653708,1733682639299,-274.846016,0.0002447,7]
[344653709,1733682639309,-168.2431,0.0002447,7]
[344653710,1733682639318,-168.2431,0.0002447,7]
[344653711,1733682639328,-213.054017,0.0002447,7]
[344653712,1733682639337,-213.054017,0.0002447,7]
[344653713,1733682639347,-691.176439,0.0002447,7]
[344653714,1733682639357,-691.176436,0.0002447,7]
[344653715,1733682639367,-325.519409,0.0002447,7]
[344653716,1733682639378,-325.519409,0.0002447,7]
[344653717,1733682639387,-698.349883,0.0002447,7]
[344653718,1733682639396,-698.349883,0.0002447,7]
[344653719,1733682639406,-264.047303,0.0002447,7]
[344653720,1733682639415,-264.047303,0.0002447,7]
[344653721,1733682639424,-435.591748,0.0002447,7]
[344653722,1733682639434,-435.591748,0.0002447,7]
[344653723,1733682639443,-3000.0,0.0002448,2]
[344653724,1733682639452,-155.896529,0.0002448,7]
[344653725,1733682639461,-151.0,0.0002448,7]
[344653726,1733682639471,-3001.242259,0.0002449,2]
[344653727,1733682639479,-151.0,0.0002449,7]
[344653728,1733682639488,-325.519409,0.0002449,7]
[344653729,1733682639497,-325.51940747,0.0002449,7]
[344653730,1733682639507,-698.349883,0.0002449,7]
[344653731,1733682639516,-698.349877,0.0002449,7]
[344653732,1733682639525,-264.047303,0.0002449,7]
[344653733,1733682639534,-264.047298,0.0002449,7]
[344653734,1733682639543,-435.591748,0.0002449,7]
[344653735,1733682639552,-435.591757,0.0002449,7]
[344653737,1733682639562,-444.535163,0.00024497,2]
[344653739,1733682639571,-940.0,0.000245,2]
[344653741,1733682639580,-151.0,0.000245,7]
[344653744,1733682639590,-151.0,0.000245,7]
[344653747,1733682639599,-2149.72293858,0.00024536,2]
[344653750,1733682639608,-274.846016,0.00024537,7]
[344653752,1733682639618,-274.846024,0.00024537,7]
[344653754,1733682639627,-213.054017,0.00024537,7]
[344653756,1733682639636,-213.054013,0.00024537,7]
[344653758,1733682639646,-151.0,0.00024544,7]
[344653759,1733682639655,-151.0,0.00024544,7]
[344653760,1733682639664,-151.0,0.0002455,7]
[344653761,1733682639673,-174.288732,0.0002455,7]
[344653762,1733682639682,-174.288732,0.0002455,7]
[344653763,1733682639691,-151.0,0.00024594,7]
[344653764,1733682639702,-151.0,0.00024594,7]
[344653765,1733682639711,-151.0,0.00024594,7]
[344653767,1733682639720,-151.0,0.000246,10]
[344653769,1733682639729,-151.0,0.00024615,7]
[344653770,1733682639738,-299.739266,0.00024615,7]
[344653771,1733682639747,-263.422831,0.0002463,7]
[344653772,1733682639756,-263.422831,0.0002463,7]
[344653773,1733682639765,-151.0,0.0002463,7]
[344653774,1733682639774,-174.288732,0.0002463,7]
[344653775,1733682639783,-174.288732,0.0002463,7]
[344653776,1733682639792,-666.0,0.00024645,2]
[344653777,1733682639802,-200.0,0.00024658,15]
[344653779,1733682639811,-420.0,0.00024664,2]
[344653781,1733682639820,-151.0,0.000247,8]
[344653783,1733682639829,-269.039185,0.000247,9]
[344653785,1733682639839,-1000.0,0.00024702,2]
[344653787,1733682639848,-444.535163,0.0002472,2]
[344653789,1733682639858,-151.0,0.00024734,7]
[344653791,1733682639867,-153.794185,0.0002474,7]
[344653793,1733682639877,-1000.0,0.00024745,2]
[344653795,1733682639886,-1000.0,0.0002477,2]
[344653797,1733682639895,-151.0,0.00024799,7]
[344653799,1733682639904,-151.0,0.00024799,7]
[344653801,1733682639914,-151.0,0.000248,8]
[344653803,1733682639924,-151.0,0.000248,6]
[344653805,1733682639934,-1000.0,0.00024811,2]
[344653807,1733682639943,-379.5285329,0.00024833,2]
[344653809,1733682639952,-1000.0,0.00024847,2]
[344653815,1733682640023,-1006.40004817,0.00024874,2]
[344653816,1733682640032,-4056.53,0.000249,2]
[344653817,1733682640042,-271.06135321,0.000249,2]
[344653818,1733682640052,-271.06135321,0.000249,2]
[344653819,1733682640062,-151.0,0.000249,7]
[344653820,1733682640071,-263.422831,0.000249,7]
[344653821,1733682640081,-263.422831,0.000249,7]
[344653822,1733682640090,-151.0,0.000249,7]
[344653823,1733682640099,-151.0,0.000249,7]
[344653824,1733682640109,-151.0,0.000249,7]
[344653825,1733682640118,-151.0,0.000249,7]
[344653826,1733682640127,-151.0,0.000249,5]
[344653827,1733682640137,-500.0,0.000249,2]
[344653828,1733682640146,-150.14,0.000249,2]
[344653829,1733682640155,-150.90086623,0.000249,2]
[344653830,1733682640164,-150.14,0.000249,2]
[344653831,1733682640175,-152.17962739,0.000249,2]
[344653832,1733682640185,-174.288732,0.000249,7]
[344653833,1733682640194,-174.288734,0.000249,7]
[344653834,1733682640203,-2149.72293858,0.000249,2]
[344653835,1733682640213,-150.14,0.000249,2]
[344653836,1733682640222,-151.0,0.000249,8]
[344653837,1733682640232,-500.0,0.000249,2]
[344653838,1733682640242,-500.0,0.000249,2]
[344653839,1733682640252,-500.0,0.000249,2]
[344653840,1733682640261,-150.14,0.000249,2]
[344653841,1733682640270,-500.0,0.000249,2]
[344653842,1733682640279,-1000.0,0.00024906,2]
[344653843,1733682640288,-1500.0,0.00024922,2]
[344653844,1733682640298,-444.535163,0.00024942,2]
[344653845,1733682640306,-2938.0,0.00024951,2]
[344653846,1733682640316,-151.0,0.00024951,7]
[344653847,1733682640326,-151.0,0.00024951,7]
[344653848,1733682640335,-500.0,0.00024973,2]
[344653849,1733682640344,-500.0,0.00024973,2]
[344653850,1733682640353,-501.52173739,0.00024973,2]
[344653851,1733682640363,-500.0,0.00024973,2]
[344653852,1733682640372,-500.0,0.00024973,2]
[344653853,1733682640381,-500.0,0.00024973,2]
[344653854,1733682640390,-500.0,0.00024973,2]
[344653855,1733682640399,-500.91961638,0.00024973,2]
[344653856,1733682640408,-161.61270418,0.00024973,2]
[344653857,1733682640417,-189.40735716,0.00024973,2]
[344653858,1733682640426,-500.0,0.00024973,2]
[344653859,1733682640435,-164.41650379,0.00024973,2]
[344653860,1733682640445,-500.0,0.00024973,2]
[344653861,1733682640453,-500.0,0.00024973,2]
[344653862,1733682640463,-151.0,0.00024973,7]
[344653863,1733682640472,-420.0,0.00024985,2]
[344653864,1733682640481,-173.59,0.0002499,7]
[344653865,1733682640491,-11520.6458368,0.00025,7]
[344653866,1733682640499,-1000.0,0.00025,30]
[344653867,1733682640509,-290.5060288,0.00025,5]
[344653868,1733682640519,-603.90515537,0.00025,7]
[344653869,1733682640528,-187.0,0.00025,2]
[344653870,1733682640537,-3416.52014681,0.00025,2]
[344653871,1733682640547,-3693.09,0.00025,14]
[344653872,1733682640557,-151.0,0.00025,7]
[344653873,1733682640565,-151.0,0.00025,7]
[344653874,1733682640575,-151.0,0.00025,7]
[344653875,1733682640584,-151.0,0.00025,7]
[344653876,1733682640593,-263.422831,0.00025,7]
[344653877,1733682640602,-263.422831,0.00025,7]
[344653878,1733682640611,-263.422831,0.00025,7]
[344653879,1733682640620,-263.422831,0.00025,7]
[344653880,1733682640630,-263.422831,0.00025,7]
[344653881,1733682640639,-263.422831,0.00025,7]
[344653882,1733682640648,-151.0,0.00025,7]
[344653883,1733682640657,-151.0,0.00025,7]
[344653884,1733682640666,-151.0,0.00025,9]
[344653885,1733682640675,-796.1593,0.00025,17]
[344653886,1733682640684,-256947.28657928,0.00025,2]
[344653887,1733682640693,-348.20383591,0.00025,2]
[344653888,1733682640702,-800.00026888,0.00025,2]
[344653889,1733682640712,-831.39998245,0.00025,2]
[344653890,1733682640721,-55095.6681621,0.00025,2]
[344653891,1733682640963,-2749.62000012,0.00023105,2]
[344653892,1733682641062,-4583.05697029,0.00023105,2]
[344653893,1733682641072,-500.0,0.00023204,2]
[344653894,1733682641082,-500.0,0.00023204,2]
[344653895,1733682641094,-190.76543039,0.00023204,2]
[344653896,1733682641103,-500.0,0.00023204,2]
[344653897,1733682641113,-500.0,0.00023204,2]
[344653898,1733682641123,-2850.75251161,0.00025,2]
[344653956,1733682643438,-7332.67697035,0.00024163,2]
[344653957,1733682643448,-35658.6622972,0.00025,2]
[344653958,1733682643457,-271277.0,0.00025,2]
[344653959,1733682643466,-400.0,0.00025011,2]
[344653960,1733682643476,-248.52,0.00025087,9]
[344653961,1733682643486,-688444.10419929,0.0002509,10]
[344654027,1733683838278,-169.058494,0.0002229,2]
[344654029,1733683838287,-300.0,0.00022706,2]
[344654030,1733683838297,-300.0,0.00022706,2]
[344654031,1733683838306,-16413.81957416,0.00022707,2]
[344654032,1733683838315,-19295.57558538,0.00023117,2]
[344654034,1733683838326,-1571.73535048,0.00023117,2]
[344654045,1733683840091,-4032.68906414,0.00023117,2]
[344654046,1733683840105,-4038.0981217,0.00023188,2]
[344654047,1733683840157,-1835.02116238,0.00023188,2]
[344654048,1733683840169,-400.0,0.00023288,2]
[344654049,1733683840183,-192.496105,0.00023562,2]
[344654050,1733683840196,-668.623,0.0002376,2]
[344654051,1733683840210,-155.03375655,0.00023899,2]
[344654052,1733683840223,-150.0,0.0002411,2]
[344654053,1733683840236,-532.0,0.0002411,2]
[344654054,1733683840248,-2372.0,0.0002411,2]
[344654055,1733683840261,-2166.0,0.0002411,2]
[344654056,1733683840274,-400.0,0.00024149,2]
[344654057,1733683840287,-166.700686,0.00024206,2]
[344654058,1733683840300,-5873.11928401,0.00024224,2]
[344654059,1733683840313,-666.0,0.0002434,2]
[344654060,1733683840326,-504.15009409,0.000244,9]
[344654061,1733683840339,-166.700686,0.00024465,2]
[344654062,1733683840352,-420.0,0.00024656,2]
[344654063,1733683840367,-200.0,0.00024658,15]
[344654064,1733683840380,-198.816,0.00024664,7]
[344654065,1733683840394,-166.700686,0.00024723,2]
[344654066,1733683840407,-192.496105,0.00024724,2]
[344654067,1733683840421,-420.0,0.00024977,2]
[344654068,1733683840434,-166.700686,0.00024982,2]
[344654069,1733683840449,-4809.89610114,0.0002499,2]
[344654070,1733683840463,-1005.3,0.00025,31]
[344654071,1733683840475,-400.0,0.00025011,2]
[344654072,1733683840486,-500.0,0.00025073,2]
[344654073,1733683840497,-500.0,0.00025073,2]
[344654074,1733683840506,-500.0,0.00025089,2]
[344654075,1733683840637,-183.24677659,0.00025089,2]
[344654076,1733683840655,-214.41778184,0.00025089,2]
[344654077,1733683840665,-169.75981967,0.00025089,2]
[344654078,1733683840675,-480.01828979,0.00025089,2]
[344654079,1733683840684,-196.69621994,0.00025089,2]
[344654080,1733683840694,-574.4531756,0.00025089,2]
[344654081,1733683840703,-188.99441749,0.00025089,2]
[344654082,1733683840712,-500.0,0.00025089,2]
[344654083,1733683840722,-500.0,0.00025089,2]
[344654084,1733683840731,-500.0,0.00025089,2]
[344654085,1733683840741,-451.97855636,0.00025089,2]
[344654086,1733683840751,-500.0,0.00025089,2]
[344654087,1733683840760,-500.0,0.00025089,2]
[344654088,1733683840770,-384.28634267,0.00025089,2]
[344654089,1733683840779,-500.0,0.00025089,2]
[344654090,1733683840790,-500.0,0.00025089,2]
[344654091,1733683840803,-592.32904771,0.00025089,2]
[344654092,1733683840812,-500.0,0.00025089,2]
[344654093,1733683840821,-500.0,0.00025089,2]
[344654094,1733683840830,-500.0,0.00025089,2]
[344654095,1733683840840,-500.0,0.00025089,2]